[Event "The Kvibergspelen 2023"]
[Site "Kviberg Park Hotel & Conference, Krutvagen 2, Gothenburg, Sweden"]
[Date "2023.09.16"]
[Round "5.5"]
[White "Cederstam, Carl"]
[Black "Reimanis, Ritvars"]
[Result "1/2-1/2"]
[TimeControl "15 minutes + 5 seconds per move from move one (Round 1 - 4) / 90 minutes + 30 seconds per move from move one (Round 5 - 8)"]
[WhiteTitle "FM"]
[BlackTitle "IM"]
[WhiteFideId "1713329"]
[BlackFideId "11602988"]
[WhiteElo "2232"]
[BlackElo "2361"]

1. c4 {[%clk 01:26:21]} {[%emt 00:04:39]} e5 {[%clk 01:30:13]} {[%emt
00:00:46]} 2. g3 {[%clk 01:26:00]} {[%emt 00:00:42]} Nf6 {[%clk 01:30:28]}
{[%emt 00:00:25]} 3. Bg2 {[%clk 01:26:23]} {[%emt 00:00:06]} Bc5 {[%clk
01:30:08]} {[%emt 00:00:51]} 4. d3 {[%clk 01:25:09]} {[%emt 00:01:44]} O-O
{[%clk 01:30:29]} {[%emt 00:00:08]} 5. Nf3 {[%clk 01:23:52]} {[%emt 00:01:47]}
Re8 {[%clk 01:30:43]} {[%emt 00:00:17]} 6. O-O {[%clk 01:22:41]} {[%emt
00:01:40]} Nc6 {[%clk 01:27:49]} {[%emt 00:03:25]} 7. Nc3 {[%clk 01:21:10]}
{[%emt 00:02:01]} d5 {[%clk 01:25:37]} {[%emt 00:02:42]} 8. cxd5 {[%clk
01:16:57]} {[%emt 00:04:43]} Nxd5 {[%clk 01:26:01]} {[%emt 00:00:07]} 9. Nxd5
{[%clk 01:10:36]} {[%emt 00:06:50]} Qxd5 {[%clk 01:26:27]} {[%emt 00:00:04]} 10.
Ng5 {[%clk 01:10:44]} {[%emt 00:00:22]} Qd7 {[%clk 01:26:30]} {[%emt 00:00:27]}
11. Qc2 {[%clk 01:09:36]} {[%emt 00:01:38]} Be7 {[%clk 01:22:52]} {[%emt
00:04:08]} 12. Qc4 {[%clk 01:05:13]} {[%emt 00:04:53]} Bxg5 {[%clk 01:17:53]}
{[%emt 00:05:29]} 13. Bxg5 {[%clk 01:01:10]} {[%emt 00:04:32]} Nd4 {[%clk
01:17:48]} {[%emt 00:00:35]} 14. Rae1 {[%clk 00:48:51]} {[%emt 00:12:49]} Qg4
{[%clk 01:17:18]} {[%emt 00:01:01]} 15. Be3 {[%clk 00:48:46]} {[%emt 00:00:34]}
c6 {[%clk 01:11:48]} {[%emt 00:06:01]} 16. f3 {[%clk 00:41:48]} {[%emt
00:07:27]} Qe6 {[%clk 01:10:53]} {[%emt 00:01:25]} 17. Bf2 {[%clk 00:41:17]}
{[%emt 00:01:01]} Qxc4 {[%clk 00:53:07]} {[%emt 00:18:17]} 18. dxc4 {[%clk
00:41:44]} {[%emt 00:00:02]} Be6 {[%clk 00:53:24]} {[%emt 00:00:14]} 19. b3
{[%clk 00:40:43]} {[%emt 00:01:31]} Rad8 {[%clk 00:53:23]} {[%emt 00:00:31]} 20.
e3 {[%clk 00:39:48]} {[%emt 00:01:25]} Nc2 {[%clk 00:52:40]} {[%emt 00:01:12]}
21. Re2 {[%clk 00:40:07]} {[%emt 00:00:11]} Nb4 {[%clk 00:51:18]} {[%emt
00:01:53]} 22. Be1 {[%clk 00:32:35]} {[%emt 00:08:01]} Na6 {[%clk 00:41:37]}
{[%emt 00:10:12]} 23. Bc3 {[%clk 00:28:39]} {[%emt 00:04:25]} f6 {[%clk
00:39:45]} {[%emt 00:02:23]} 24. Rc1 {[%clk 00:26:57]} {[%emt 00:02:10]} Bf5
{[%clk 00:32:27]} {[%emt 00:07:49]} 25. e4 {[%clk 00:26:38]} {[%emt 00:00:49]}
Bc8 {[%clk 00:32:51]} {[%emt 00:00:07]} 26. f4 {[%clk 00:17:17]} {[%emt
00:09:50]} Nc5 {[%clk 00:29:07]} {[%emt 00:04:14]} 27. f5 {[%clk 00:16:41]}
{[%emt 00:01:06]} b6 {[%clk 00:23:42]} {[%emt 00:05:55]} 28. Rd2 {[%clk
00:12:31]} {[%emt 00:04:40]} Rxd2 {[%clk 00:23:57]} {[%emt 00:00:16]} 29. Bxd2
{[%clk 00:13:00]} {[%emt 00:00:01]} Rd8 {[%clk 00:24:09]} {[%emt 00:00:18]} 30.
Be3 {[%clk 00:13:14]} {[%emt 00:00:13]} Na6 {[%clk 00:23:46]} {[%emt 00:00:56]}
31. c5 {[%clk 00:07:34]} {[%emt 00:06:09]} Nxc5 {[%clk 00:13:35]} {[%emt
00:10:42]} 32. Bxc5 {[%clk 00:07:59]} {[%emt 00:00:05]} bxc5 {[%clk 00:14:04]}
33. Rxc5 {[%emt 00:02:19]} Rd1+ {[%clk 00:13:19]} 34. Kf2 {[%clk 00:07:39]}
{[%emt 00:00:02]} Rd2+ {[%clk 00:13:44]} {[%emt 00:00:18]} 35. Kg1 {[%clk
00:07:23]} {[%emt 00:00:44]} Rxa2 {[%clk 00:12:12]} {[%emt 00:02:05]} 36. Rxc6
{[%clk 00:07:40]} {[%emt 00:00:12]} Bd7 {[%clk 00:11:07]} {[%emt 00:01:35]} 37.
Rc7 {[%clk 00:04:31]} {[%emt 00:03:40]} Bb5 {[%clk 00:11:32]} {[%emt 00:00:05]}
38. Rc8+ {[%clk 00:04:53]} {[%emt 00:00:07]} Kf7 {[%clk 00:11:57]} {[%emt
00:00:05]} 39. Rc7+ {[%clk 00:05:21]} {[%emt 00:00:03]} Kf8 {[%clk 00:12:16]}
{[%emt 00:00:10]} 40. Rc8+ {[%clk 00:05:32]} {[%emt 00:00:20]} Ke7 {[%clk
00:12:12]} {[%emt 00:00:34]} 41. Rg8 {[%clk 00:04:26]} {[%emt 00:01:35]} Kf7
{[%clk 00:11:25]} {[%emt 00:01:18]} 42. Rb8 {[%clk 00:04:31]} {[%emt 00:00:26]}
Bc6 {[%clk 00:11:31]} {[%emt 00:00:22]} 43. Rc8 {[%clk 00:04:36]} {[%emt
00:00:25]} Bd7 {[%clk 00:11:18]} {[%emt 00:00:43]} 44. Rd8 {[%clk 00:04:24]}
{[%emt 00:00:43]} Be8 {[%clk 00:06:00]} {[%emt 00:05:48]} 45. Bf1 {[%clk
00:03:59]} {[%emt 00:00:55]} Ke7 {[%clk 00:05:36]} {[%emt 00:00:54]} 46. Rc8
{[%clk 00:04:20]} {[%emt 00:00:06]} Rd2 {[%clk 00:05:21]} {[%emt 00:00:47]} 47.
Bc4 {[%clk 00:03:33]} {[%emt 00:01:17]} g6 {[%clk 00:05:38]} {[%emt 00:00:13]}
48. Be6 {[%clk 00:03:31]} {[%emt 00:00:32]} a5 {[%clk 00:04:18]} {[%emt
00:01:51]} 49. Rc7+ {[%clk 00:01:45]} {[%emt 00:02:15]} Kd6 {[%clk 00:04:47]}
{[%emt 00:00:02]} 50. Rc8 {[%clk 00:01:49]} {[%emt 00:00:25]} Ke7 {[%clk
00:05:04]} {[%emt 00:00:14]} 51. Rc7+ {[%clk 00:02:14]} {[%emt 00:00:05]} Kd6
{[%clk 00:05:30]} {[%emt 00:00:04]} 52. Rc8 {[%clk 00:02:20]} {[%emt 00:00:23]}
Ke7 {[%clk 00:05:39]} {[%emt 00:00:22]} 1/2-1/2

[Event "The Kvibergspelen 2023"]
[Site "Kviberg Park Hotel & Conference, Krutvagen 2, Gothenburg, Sweden"]
[Date "2023.09.16"]
[Round "5.6"]
[White "Holm, Ragnar"]
[Black "Larkin, Vladyslav"]
[Result "0-1"]
[TimeControl "15 minutes + 5 seconds per move from move one (Round 1 - 4) / 90 minutes + 30 seconds per move from move one (Round 5 - 8)"]
[BlackTitle "IM"]
[WhiteFideId "1505858"]
[BlackFideId "14152894"]
[WhiteElo "2128"]
[BlackElo "2464"]

1. d4 {[%clk 01:28:44]} {[%emt 00:02:16]} Nc6 {[%clk 01:27:16]} {[%emt
00:03:44]} 2. Nf3 {[%clk 01:28:25]} {[%emt 00:00:49]} d6 {[%clk 01:27:41]}
{[%emt 00:00:06]} 3. d5 {[%clk 01:26:38]} {[%emt 00:02:16]} Ne5 {[%clk
01:27:39]} {[%emt 00:00:32]} 4. e4 {[%clk 01:25:58]} {[%emt 00:01:11]} Nxf3+
{[%clk 01:24:00]} {[%emt 00:04:08]} 5. Qxf3 {[%clk 01:25:56]} {[%emt 00:00:32]}
Bd7 {[%clk 01:19:14]} {[%emt 00:05:16]} 6. c4 {[%clk 01:22:44]} {[%emt
00:03:42]} g6 {[%clk 01:19:30]} {[%emt 00:00:14]} 7. Bd2 {[%clk 01:21:08]}
{[%emt 00:02:06]} Bg7 {[%clk 01:19:39]} {[%emt 00:00:22]} 8. Bc3 {[%clk
01:21:13]} {[%emt 00:00:26]} Nf6 {[%clk 01:20:00]} {[%emt 00:00:08]} 9. h3
{[%clk 01:21:10]} {[%emt 00:00:32]} O-O {[%clk 01:20:16]} {[%emt 00:00:14]} 10.
Be2 {[%clk 01:20:51]} {[%emt 00:00:50]} c6 {[%clk 01:16:16]} {[%emt 00:04:30]}
11. O-O {[%clk 01:19:17]} {[%emt 00:02:03]} e5 {[%clk 01:11:30]} {[%emt
00:05:17]} 12. dxe6 {[%clk 01:16:41]} {[%emt 00:03:06]} fxe6 {[%clk 01:11:52]}
{[%emt 00:00:07]} 13. Qd3 {[%clk 01:14:57]} {[%emt 00:02:14]} e5 {[%clk
01:09:37]} {[%emt 00:02:46]} 14. Nd2 {[%clk 01:10:03]} {[%emt 00:05:24]} Qe7
{[%clk 01:08:15]} {[%emt 00:01:51]} 15. Rad1 {[%clk 01:05:09]} {[%emt
00:05:25]} Rad8 {[%clk 01:07:19]} {[%emt 00:01:26]} 16. f4 {[%clk 01:01:22]}
{[%emt 00:04:16]} Bh6 {[%clk 01:04:57]} {[%emt 00:02:52]} 17. c5 {[%clk
00:53:12]} {[%emt 00:08:40]} Bxf4 {[%clk 00:53:44]} {[%emt 00:11:43]} 18. cxd6
{[%clk 00:50:34]} {[%emt 00:03:08]} Qe8 {[%clk 00:54:11]} {[%emt 00:00:03]} 19.
Nb3 {[%clk 00:48:44]} {[%emt 00:02:20]} b6 {[%clk 00:53:51]} {[%emt 00:00:50]}
20. Qc4+ {[%clk 00:37:53]} {[%emt 00:11:21]} Be6 {[%clk 00:52:57]} {[%emt
00:01:24]} 21. Qd3 {[%clk 00:34:53]} {[%emt 00:03:30]} Nd7 {[%clk 00:50:29]}
{[%emt 00:02:57]} 22. g3 {[%clk 00:32:06]} {[%emt 00:03:17]} Bh6 {[%clk
00:50:51]} {[%emt 00:00:09]} 23. Kg2 {[%clk 00:31:46]} {[%emt 00:00:51]} Nf6
{[%clk 00:47:51]} {[%emt 00:03:29]} 24. Bd2 {[%clk 00:30:06]} {[%emt 00:02:11]}
Bxd2 {[%clk 00:47:17]} {[%emt 00:01:04]} 25. Rxd2 {[%clk 00:29:16]} {[%emt
00:01:20]} Kg7 {[%clk 00:47:10]} {[%emt 00:00:36]} 26. g4 {[%clk 00:24:54]}
{[%emt 00:04:52]} Rf7 {[%clk 00:42:05]} {[%emt 00:05:35]} 27. g5 {[%clk
00:21:50]} {[%emt 00:03:34]} Nd7 {[%clk 00:42:29]} {[%emt 00:00:06]} 28. Qg3
{[%clk 00:20:49]} {[%emt 00:01:31]} Rxf1 {[%clk 00:41:42]} {[%emt 00:01:17]} 29.
Bxf1 {[%clk 00:20:41]} {[%emt 00:00:38]} Qf8 {[%clk 00:38:23]} {[%emt
00:03:49]} 30. Nc1 {[%clk 00:19:41]} {[%emt 00:01:30]} a5 {[%clk 00:35:46]}
{[%emt 00:03:07]} 31. a3 {[%clk 00:19:28]} {[%emt 00:00:43]} Kh8 {[%clk
00:35:34]} {[%emt 00:00:42]} 32. Be2 {[%clk 00:16:32]} {[%emt 00:03:27]} Qg7
{[%clk 00:34:44]} {[%emt 00:01:20]} 33. b4 {[%clk 00:16:34]} {[%emt 00:00:27]}
axb4 {[%clk 00:35:00]} {[%emt 00:00:14]} 34. axb4 {[%clk 00:16:56]} {[%emt
00:00:08]} Rf8 {[%clk 00:29:38]} {[%emt 00:05:52]} 35. Nd3 {[%clk 00:15:30]}
{[%emt 00:01:56]} c5 {[%clk 00:29:36]} {[%emt 00:00:33]} 36. bxc5 {[%clk
00:15:26]} {[%emt 00:00:33]} bxc5 {[%clk 00:30:01]} {[%emt 00:00:05]} 37. Bg4
{[%clk 00:13:41]} {[%emt 00:02:15]} Bxg4 {[%clk 00:30:26]} {[%emt 00:00:05]} 38.
Qxg4 {[%clk 00:13:52]} {[%emt 00:00:19]} c4 {[%clk 00:30:49]} {[%emt 00:00:07]}
39. Nf2 {[%clk 00:12:26]} {[%emt 00:01:57]} Qf7 {[%clk 00:30:42]} {[%emt
00:00:37]} 40. Qg3 {[%clk 00:08:56]} {[%emt 00:04:00]} Rb8 {[%clk 00:28:44]}
{[%emt 00:02:28]} 41. Ng4 {[%clk 00:07:54]} {[%emt 00:01:31]} Rb3 {[%clk
00:25:06]} {[%emt 00:04:09]} 42. Ne3 {[%clk 00:06:11]} {[%emt 00:02:13]} c3
{[%clk 00:19:43]} {[%emt 00:05:55]} 43. Rf2 {[%clk 00:03:22]} {[%emt 00:03:17]}
Qe6 {[%clk 00:20:08]} {[%emt 00:00:04]} 44. Nd5 {[%clk 00:03:08]} {[%emt
00:00:44]} c2 {[%clk 00:19:52]} {[%emt 00:00:46]} 0-1

[Event "The Kvibergspelen 2023"]
[Site "Kviberg Park Hotel & Conference, Krutvagen 2, Gothenburg, Sweden"]
[Date "2023.09.16"]
[Round "5.7"]
[White "Olsson, William"]
[Black "Anderzen, Robert"]
[Result "1-0"]
[TimeControl "15 minutes + 5 seconds per move from move one (Round 1 - 4) / 90 minutes + 30 seconds per move from move one (Round 5 - 8)"]
[WhiteTitle "FM"]
[WhiteFideId "1741721"]
[BlackFideId "1716239"]
[WhiteElo "2376"]
[BlackElo "2112"]

1. c4 {[%clk 01:30:55]} {[%emt 00:00:05]} c6 {[%clk 01:30:25]} {[%emt
00:00:35]} 2. Nf3 {[%clk 01:31:10]} {[%emt 00:00:16]} d5 {[%clk 01:30:37]}
{[%emt 00:00:17]} 3. d4 {[%clk 01:31:34]} {[%emt 00:00:06]} Nf6 {[%clk
01:30:47]} {[%emt 00:00:20]} 4. Nc3 {[%clk 01:31:37]} {[%emt 00:00:29]} e6
{[%clk 01:28:21]} {[%emt 00:02:54]} 5. Bg5 {[%clk 01:31:08]} {[%emt 00:01:00]}
Be7 {[%clk 01:20:19]} {[%emt 00:08:31]} 6. e3 {[%clk 01:27:24]} {[%emt
00:04:16]} Nbd7 {[%clk 01:20:13]} {[%emt 00:00:35]} 7. Bd3 {[%clk 01:27:07]}
{[%emt 00:00:46]} O-O {[%clk 01:07:06]} {[%emt 00:13:37]} 8. O-O {[%clk
01:26:56]} {[%emt 00:00:42]} b6 {[%clk 00:50:33]} {[%emt 00:17:02]} 9. cxd5
{[%clk 01:20:59]} {[%emt 00:06:29]} exd5 {[%clk 00:50:34]} {[%emt 00:00:28]} 10.
Qc2 {[%clk 01:15:50]} {[%emt 00:05:39]} Bb7 {[%clk 00:33:28]} {[%emt 00:17:36]}
11. Rac1 {[%clk 01:08:17]} {[%emt 00:08:03]} c5 {[%clk 00:22:55]} {[%emt
00:11:01]} 12. Bf4 {[%clk 01:04:44]} {[%emt 00:04:04]} a6 {[%clk 00:16:47]}
{[%emt 00:06:38]} 13. dxc5 {[%clk 01:03:54]} {[%emt 00:01:22]} bxc5 {[%clk
00:15:34]} {[%emt 00:01:42]} 14. Rfd1 {[%clk 01:03:59]} {[%emt 00:00:25]} d4
{[%clk 00:09:02]} {[%emt 00:07:02]} 15. Ne4 {[%clk 01:03:18]} {[%emt 00:01:11]}
Nd5 {[%clk 00:09:22]} {[%emt 00:00:09]} 16. Nd6 {[%clk 01:02:33]} {[%emt
00:01:16]} Bxd6 {[%clk 00:04:58]} {[%emt 00:04:54]} 17. Bxd6 {[%clk 01:02:55]}
{[%emt 00:00:08]} Re8 {[%clk 00:05:16]} {[%emt 00:00:11]} 18. exd4 {[%clk
01:02:51]} {[%emt 00:00:34]} Nb4 {[%clk 00:04:55]} {[%emt 00:00:51]} 19. Bxh7+
{[%clk 00:56:58]} {[%emt 00:06:25]} Kh8 {[%clk 00:05:22]} {[%emt 00:00:02]} 20.
Qb3 {[%clk 00:52:15]} {[%emt 00:05:13]} Bd5 {[%clk 00:04:41]} {[%emt 00:01:11]}
21. Qa3 {[%clk 00:52:41]} {[%emt 00:00:04]} Kxh7 {[%clk 00:01:34]} {[%emt
00:03:37]} 22. dxc5 {[%clk 00:53:03]} {[%emt 00:00:07]} a5 {[%clk 00:01:26]}
{[%emt 00:00:38]} 23. Rxd5 {[%clk 00:52:37]} {[%emt 00:00:57]} Nxd5 {[%clk
00:01:54]} {[%emt 00:00:02]} 24. Qd3+ {[%clk 00:53:01]} {[%emt 00:00:06]} Kg8
{[%clk 00:02:18]} {[%emt 00:00:05]} 25. Qxd5 {[%clk 00:53:28]} {[%emt
00:00:04]} Nf6 {[%clk 00:01:35]} {[%emt 00:01:11]} 26. Qc4 {[%clk 00:52:57]}
{[%emt 00:01:03]} Rc8 {[%clk 00:01:02]} {[%emt 00:01:03]} 27. Be5 {[%clk
00:48:57]} {[%emt 00:04:30]} Nd7 {[%clk 00:01:08]} {[%emt 00:00:23]} 28. Bd4
{[%clk 00:49:17]} {[%emt 00:00:11]} Rc6 {[%clk 00:01:17]} {[%emt 00:00:21]} 29.
a3 {[%clk 00:49:05]} {[%emt 00:00:43]} Nb6 {[%clk 00:00:46]} {[%emt 00:01:00]}
30. Qb5 {[%clk 00:48:47]} {[%emt 00:00:49]} Qd5 {[%clk 00:00:48]} {[%emt
00:00:27]} 31. Be3 {[%clk 00:47:25]} {[%emt 00:01:52]} Nd7 {[%clk 00:00:51]}
{[%emt 00:00:26]} 32. b4 {[%clk 00:46:20]} {[%emt 00:01:36]} axb4 {[%clk
00:01:07]} {[%emt 00:00:14]} 33. axb4 {[%clk 00:46:39]} {[%emt 00:00:11]} Rg6
{[%clk 00:01:12]} {[%emt 00:00:24]} 34. Kf1 {[%clk 00:46:05]} {[%emt 00:01:05]}
Ree6 {[%clk 00:00:47]} {[%emt 00:00:54]} 35. Qc4 {[%clk 00:46:09]} {[%emt
00:00:26]} Qh5 {[%clk 00:00:39]} {[%emt 00:00:38]} 36. h3 {[%clk 00:44:29]}
{[%emt 00:02:08]} Ne5 {[%clk 00:00:39]} {[%emt 00:00:33]} 37. Nxe5 {[%clk
00:44:09]} {[%emt 00:00:50]} Qxe5 {[%clk 00:00:49]} {[%emt 00:00:19]} 38. Rd1
{[%clk 00:43:45]} {[%emt 00:00:55]} Re8 {[%clk 00:00:38]} {[%emt 00:00:41]} 39.
Kg1 {[%clk 00:43:11]} {[%emt 00:01:04]} Qf5 {[%clk 00:00:59]} {[%emt 00:00:09]}
40. Kh1 {[%clk 00:43:16]} {[%emt 00:00:24]} Re4 {[%clk 00:00:47]} {[%emt
00:00:42]} 41. Qd3 {[%clk 00:42:46]} {[%emt 00:01:00]} Qe6 {[%clk 00:00:38]}
{[%emt 00:00:40]} 42. b5 {[%clk 00:43:11]} {[%emt 00:00:05]} Kh7 {[%clk
00:00:41]} {[%emt 00:00:27]} 43. Qd5 {[%clk 00:42:47]} {[%emt 00:00:53]} 1-0

[Event "The Kvibergspelen 2023"]
[Site "Kviberg Park Hotel & Conference, Krutvagen 2, Gothenburg, Sweden"]
[Date "2023.09.16"]
[Round "5.8"]
[White "Joensson, Oscar"]
[Black "Hamark, Jesper"]
[Result "1-0"]
[TimeControl "15 minutes + 5 seconds per move from move one (Round 1 - 4) / 90 minutes + 30 seconds per move from move one (Round 5 - 8)"]
[WhiteFideId "1729977"]
[BlackFideId "1704338"]
[WhiteElo "2060"]
[BlackElo "2342"]

1. d4 {[%clk 01:30:56]} {[%emt 00:00:03]} Nf6 {[%clk 01:30:17]} {[%emt
00:00:37]} 2. c4 {[%clk 01:31:20]} {[%emt 00:00:14]} d6 {[%clk 01:30:18]}
{[%emt 00:00:28]} 3. Nf3 {[%clk 01:31:25]} {[%emt 00:00:24]} g6 {[%clk
01:29:09]} {[%emt 00:01:41]} 4. g3 {[%clk 01:31:40]} {[%emt 00:00:14]} Bg7
{[%clk 01:28:37]} {[%emt 00:01:02]} 5. Bg2 {[%clk 01:32:03]} {[%emt 00:00:07]}
O-O {[%clk 01:29:01]} {[%emt 00:00:07]} 6. Nc3 {[%emt 00:01:13]} c5 {[%clk
01:29:08]} 7. O-O {[%clk 01:26:35]} {[%emt 00:05:36]} Nc6 {[%clk 01:29:35]}
{[%emt 00:00:04]} 8. d5 {[%clk 01:26:38]} {[%emt 00:00:27]} Na5 {[%clk
01:29:59]} {[%emt 00:00:06]} 9. Nd2 {[%clk 01:24:14]} {[%emt 00:02:53]} a6
{[%clk 01:30:13]} {[%emt 00:00:17]} 10. Qc2 {[%clk 01:19:18]} {[%emt 00:05:26]}
Rb8 {[%clk 01:30:22]} {[%emt 00:00:21]} 11. b3 {[%clk 01:10:41]} {[%emt
00:09:06]} b5 {[%clk 01:30:46]} {[%emt 00:00:07]} 12. Rb1 {[%clk 01:09:35]}
{[%emt 00:01:36]} e5 {[%clk 01:19:15]} {[%emt 00:12:01]} 13. e4 {[%clk
01:03:18]} {[%emt 00:06:48]} Bd7 {[%clk 01:14:41]} {[%emt 00:05:03]} 14. Nd1
{[%clk 00:57:49]} {[%emt 00:05:58]} Bh6 {[%clk 01:04:06]} {[%emt 00:11:06]} 15.
Nb2 {[%clk 00:45:17]} {[%emt 00:13:02]} Nh5 {[%clk 00:56:25]} {[%emt 00:08:11]}
16. Nd3 {[%clk 00:33:06]} {[%emt 00:12:41]} f5 {[%clk 00:46:10]} {[%emt
00:10:45]} 17. b4 {[%clk 00:27:29]} {[%emt 00:06:06]} cxb4 {[%clk 00:30:31]}
{[%emt 00:16:10]} 18. c5 {[%clk 00:24:25]} {[%emt 00:03:34]} dxc5 {[%clk
00:24:24]} {[%emt 00:06:37]} 19. Qxc5 {[%clk 00:21:28]} {[%emt 00:03:27]} Re8
{[%clk 00:23:13]} {[%emt 00:01:41]} 20. Nxb4 {[%clk 00:14:07]} {[%emt
00:07:50]} Rc8 {[%clk 00:20:35]} {[%emt 00:03:09]} 21. Qa7 {[%clk 00:13:11]}
{[%emt 00:01:25]} Ra8 {[%clk 00:19:35]} {[%emt 00:01:31]} 22. Qc5 {[%clk
00:13:34]} {[%emt 00:00:06]} Rc8 {[%clk 00:20:01]} {[%emt 00:00:05]} 23. Qa7
{[%clk 00:13:59]} {[%emt 00:00:04]} Bf8 {[%clk 00:10:08]} {[%emt 00:10:23]} 24.
Qe3 {[%clk 00:12:30]} {[%emt 00:02:00]} Bc5 {[%clk 00:09:54]} {[%emt 00:00:44]}
25. Qe2 {[%clk 00:10:18]} {[%emt 00:02:42]} Qb6 {[%clk 00:09:46]} {[%emt
00:00:39]} 26. Nd3 {[%clk 00:09:30]} {[%emt 00:01:16]} Bd4 {[%clk 00:09:46]}
{[%emt 00:00:31]} 27. Bb2 {[%clk 00:09:04]} {[%emt 00:00:56]} Bxb2 {[%clk
00:06:09]} {[%emt 00:04:07]} 28. Rxb2 {[%clk 00:08:52]} {[%emt 00:00:42]} Rc3
{[%clk 00:04:11]} {[%emt 00:02:28]} 29. Rc1 {[%clk 00:06:41]} {[%emt 00:02:40]}
Rxc1+ {[%clk 00:04:15]} {[%emt 00:00:28]} 30. Nxc1 {[%clk 00:07:05]} {[%emt
00:00:05]} f4 {[%clk 00:04:09]} {[%emt 00:00:36]} 31. Qd3 {[%clk 00:04:50]}
{[%emt 00:02:45]} Rc8 {[%clk 00:02:00]} {[%emt 00:02:40]} 32. Ne2 {[%clk
00:04:58]} {[%emt 00:00:21]} Qd6 {[%clk 00:01:25]} {[%emt 00:01:05]} 33. Rc2
{[%clk 00:03:56]} {[%emt 00:01:32]} Rxc2 {[%clk 00:00:34]} {[%emt 00:01:22]} 34.
Qxc2 {[%clk 00:04:20]} {[%emt 00:00:05]} Kf7 {[%clk 00:00:34]} {[%emt
00:00:30]} 35. Bf3 {[%clk 00:01:44]} {[%emt 00:03:06]} fxg3 {[%clk 00:00:51]}
{[%emt 00:00:14]} 36. hxg3 {[%clk 00:02:04]} {[%emt 00:00:10]} Nf6 {[%clk
00:01:17]} {[%emt 00:00:04]} 37. Nc1 {[%clk 00:02:06]} {[%emt 00:00:28]} b4
{[%clk 00:01:04]} {[%emt 00:00:42]} 38. Ndb3 {[%clk 00:01:00]} {[%emt
00:01:36]} Nxb3 {[%clk 00:01:19]} {[%emt 00:00:16]} 39. Nxb3 {[%clk 00:01:18]}
{[%emt 00:00:12]} Bb5 {[%clk 00:01:30]} {[%emt 00:00:18]} 40. Qc8 {[%clk
00:01:35]} {[%emt 00:00:13]} Nd7 {[%clk 00:00:49]} {[%emt 00:01:12]} 41. Bg4
{[%clk 00:01:23]} {[%emt 00:00:41]} Nf6 {[%clk 00:00:58]} {[%emt 00:00:21]} 42.
Be6+ {[%clk 00:01:30]} {[%emt 00:00:22]} Kg7 {[%clk 00:01:24]} {[%emt
00:00:04]} 43. Nc5 {[%clk 00:01:06]} {[%emt 00:00:55]} Kh6 {[%clk 00:00:33]}
{[%emt 00:01:22]} 44. Qh8 {[%clk 00:00:38]} {[%emt 00:00:54]} Qe7 {[%clk
00:00:33]} {[%emt 00:00:33]} 45. Qc8 {[%clk 00:00:54]} {[%emt 00:00:13]} Bc4
{[%clk 00:00:47]} {[%emt 00:00:18]} 46. Nxa6 {[%clk 00:00:58]} {[%emt
00:00:26]} Bxa2 {[%clk 00:01:11]} {[%emt 00:00:05]} 47. Qc1+ {[%clk 00:00:58]}
{[%emt 00:00:30]} Kg7 {[%clk 00:01:34]} {[%emt 00:00:07]} 48. Qb2 {[%clk
00:01:20]} {[%emt 00:00:07]} b3 {[%clk 00:00:55]} {[%emt 00:01:10]} 49. Qxe5
{[%clk 00:01:30]} {[%emt 00:00:19]} Kh6 {[%clk 00:01:11]} {[%emt 00:00:14]} 50.
d6 {[%clk 00:01:23]} {[%emt 00:00:38]} b2 {[%clk 00:00:32]} {[%emt 00:01:10]}
51. dxe7 {[%clk 00:01:24]} {[%emt 00:00:29]} b1=Q+ {[%emt 00:00:04]} 52. Kg2
{[%clk 00:01:27]} {[%emt 00:00:25]} Bxe6 {[%clk 00:00:32]} {[%emt 00:00:57]} 53.
Qxe6 {[%clk 00:01:51]} {[%emt 00:00:06]} Qd3 {[%clk 00:00:34]} {[%emt
00:00:27]} 54. Qxf6 {[%clk 00:02:01]} {[%emt 00:00:21]} Qxe4+ {[%clk 00:00:55]}
{[%emt 00:00:09]} 55. Kh2 {[%clk 00:02:26]} {[%emt 00:00:05]} 1-0